bitfinex/quotes_ETHUSD_20241024
["timestamp","ask_amount","ask_price","bid_price","bid_amount"]
[1729781651048,3.96377,2522.9,2522.3,9.617846]
[1729781651274,3.8244,2523.5,2522.6,0.7931]
[1729781651557,3.9641,2522.7,2522.4,0.7931]
[1729781651921,3.96417,2522.6,2522.4,0.7931]
[1729781652755,3.96401,2522.7,2522.4,0.7931]
[1729781652930,7.92815,2522.7,2522.4,0.7931]
[1729781653464,3.96432,2522.5,2522.4,0.7931]
[1729781653754,7.92816,2522.7,2522.4,0.7931]
[1729781654060,3.96423,2522.6,2522.4,0.7931]
[1729781654225,3.96432,2522.5,2522.2,0.8143]
[1729781654422,0.8261,2522.9,2522.2,0.8143]
[1729781654621,3.96424,2522.6,2522.2,0.8143]
[1729781655714,1.305069,2522.9,2522.2,0.8143]
[1729781655715,3.96443,2522.5,2522.2,0.8143]
[1729781655945,1.305069,2522.9,2522.2,0.8143]
[1729781656115,1.305069,2522.9,2521.6,8.00832606]
[1729781656116,3.96464,2522.3,2521.7,0.7622]
[1729781656319,3.96417,2522.6,2521.7,0.7622]
[1729781656542,3.96485,2522.2,2521.7,0.7622]
[1729781656753,3.96464,2522.3,2521.7,4.72765]
[1729781657836,3.96485,2522.2,2521.7,4.72765]
[1729781658433,3.96485,2522.2,2521.7,5.596975]
[1729781658917,3.96498,2522.1,2521.7,1.631525]
[1729781659114,3.96485,2522.2,2521.7,5.597055]
[1729781660152,3.96466,2522.3,2521.8,3.9654]
[1729781660342,3.96466,2522.3,2521.7,5.597055]
[1729781660534,3.96466,2522.3,2521.7,9.562545]
[1729781661548,3.96466,2522.3,2521.8,3.9654]
[1729781661764,3.96456,2522.4,2521.9,4.78198]
[1729781662060,3.96432,2522.5,2521.9,4.78198]
[1729781662273,3.96458,2522.4,2521.9,4.78198]
[1729781662436,3.96432,2522.5,2521.9,0.8168]
[1729781662645,3.96464,2522.3,2521.9,0.8168]
[1729781663039,3.96432,2522.5,2521.9,5.75244915]
[1729781663236,3.96453,2522.4,2521.9,4.78206]
[1729781663629,3.96453,2522.4,2521.9,4.78199]
[1729781663830,3.96453,2522.4,2521.9,8.74716]
[1729781664331,7.92912,2522.4,2521.9,4.78197]
[1729781664537,3.96453,2522.4,2521.9,4.78197]
[1729781664734,3.96434,2522.5,2522.0,3.96509]
[1729781665133,3.96434,2522.5,2522.1,0.7644]
[1729781665872,3.96416,2522.6,2522.1,0.7644]
[1729781666084,4.04268606,2522.8,2522.1,0.7644]
[1729781666262,3.96472,2522.3,2522.1,0.7644]
[1729781666673,0.7984,2522.6,2521.7,0.8239]
[1729781666674,8.80530606,2522.6,2521.7,0.8239]
[1729781666859,7.92979,2522.2,2521.7,0.8239]
[1729781667242,3.96487,2522.2,2521.7,0.8239]
[1729781667476,3.96502,2522.1,2521.7,0.8239]
[1729781668544,7.93008,2522.1,2521.7,0.8239]
[1729781668882,3.96511,2522.0,2521.7,0.8239]
[1729781669084,3.96502,2522.1,2521.7,0.8239]
[1729781669377,3.96476,2522.3,2521.7,1.699437]
[1729781669585,7.92887,2522.5,2521.9,0.7664]
[1729781669789,3.96414,2522.7,2522.0,3.96508]
[1729781670077,3.96416,2522.6,2522.1,7.92979]
[1729781670286,3.96416,2522.6,2522.1,3.96488]
[1729781670844,3.96439,2522.5,2522.0,3.96509]
[1729781671074,3.96439,2522.5,2522.0,0.86966]
[1729781671278,3.96466,2522.3,2521.9,0.7664]
[1729781671582,3.96449,2522.4,2521.9,4.73161]
[1729781671877,3.96449,2522.4,2521.9,4.81090704]
[1729781672044,3.96432,2522.5,2522.0,3.96509]
[1729781672235,3.96424,2522.6,2522.1,3.96493]
[1729781673041,3.96424,2522.6,2522.2,0.7823]
[1729781673253,3.96379,2522.9,2522.4,0.7823]
[1729781673580,3.96402,2522.7,2522.4,0.7823]
[1729781673789,3.96417,2522.6,2522.4,0.7823]
[1729781674139,3.96432,2522.5,2522.0,0.8148]
[1729781674394,3.96471,2522.3,2522.0,0.8148]
[1729781674573,3.96487,2522.2,2522.0,0.8148]
[1729781674740,3.96494,2522.1,2521.6,3.96563]
[1729781674947,3.96494,2522.1,2521.6,4.04493496]
[1729781675648,3.96481,2522.2,2521.7,3.96557]
[1729781675913,3.96462,2522.4,2521.8,4.75511]
[1729781676244,3.96456,2522.4,2521.9,3.96518]
[1729781676457,3.96456,2522.4,2521.9,8.00786606]
[1729781676886,3.96466,2522.3,2521.8,4.7551]
[1729781677092,3.96466,2522.3,2521.8,6.11967706]
[1729781677990,0.8106,2522.7,2521.8,0.7897]
[1729781678140,3.96497,2522.1,2521.8,0.7897]
[1729781678340,3.96473,2522.3,2521.8,0.7897]
[1729781678581,3.9649,2522.2,2521.8,0.7897]
[1729781678947,3.96498,2522.1,2521.8,0.7897]
[1729781679459,3.9649,2522.2,2521.8,0.7897]
[1729781679651,3.96476,2522.3,2521.8,2.06607161]
[1729781680265,3.96476,2522.3,2521.8,6.03146161]
[1729781680459,3.96481,2522.2,2521.8,2.06607161]
[1729781680788,3.96448,2522.4,2521.8,6.03146161]
[1729781680983,7.92908,2522.4,2522.0,0.79]
[1729781681182,3.96448,2522.4,2522.0,0.79]
[1729781681361,3.96448,2522.4,2522.0,2.19397977]
[1729781681561,3.96433,2522.5,2522.1,4.04268606]
[1729781681872,3.96415,2522.7,2522.3,4.04268606]
[1729781682077,3.96432,2522.5,2522.0,0.79]
[1729781682744,3.96386,2522.8,2522.0,0.79]
[1729781682745,3.96454,2522.4,2522.0,0.79]
[1729781683093,3.96454,2522.4,2521.8,3.96532]
[1729781683094,3.9649,2522.2,2521.8,0.832]
[1729781683252,3.96521,2522.0,2521.4,0.7722]
[1729781683582,3.96536,2521.9,2521.4,0.7722]
[1729781683950,3.96555,2521.8,2521.4,0.7722]
[1729781684150,3.96567,2521.7,2521.4,0.7722]
[1729781684576,3.96543,2521.8,2521.4,0.7722]
[1729781685087,3.96529,2521.9,2521.4,0.7722]
[1729781685387,3.96518,2522.0,2521.5,4.04268606]
[1729781685593,3.96528,2521.9,2521.4,1.65823892]
[1729781686088,7.93038,2522.0,2521.4,1.65823892]
[1729781686290,3.96528,2521.9,2521.4,1.65823892]
[1729781686984,7.93043,2522.0,2521.4,5.62426892]
[1729781687147,3.96528,2521.9,2521.4,1.65823892]
[1729781687349,3.96512,2522.0,2521.5,8.00856606]
[1729781687581,3.96519,2522.0,2521.5,5.40597756]
[1729781687896,3.96496,2522.1,2521.5,9.37178756]
[1729781688274,3.96496,2522.1,2521.6,4.04500881]
[1729781688601,3.96479,2522.2,2521.7,0.7866]
[1729781688811,3.96473,2522.3,2521.7,8.79478606]
[1729781688969,3.96473,2522.3,2521.7,10.21509448]
[1729781689171,3.96485,2522.2,2521.7,2.20690842]
[1729781689514,3.96473,2522.3,2521.7,4.75211]
[1729781690214,3.96482,2522.2,2521.7,4.75211]
[1729781690393,3.96473,2522.3,2521.7,4.75211]
[1729781690599,3.96473,2522.3,2521.7,12.76029606]
[1729781690826,7.92884,2522.5,2521.9,8.00787606]
[1729781691117,3.96454,2522.4,2521.8,5.24935979]
[1729781691286,3.96473,2522.3,2521.8,1.28395979]
[1729781691478,3.96473,2522.3,2521.9,1.00788058]
[1729781692272,3.96473,2522.3,2521.8,3.96539]
[1729781692823,3.96449,2522.4,2521.8,3.9653]
[1729781692980,3.96433,2522.5,2521.9,0.86379621]
[1729781693312,3.96439,2522.5,2521.9,4.74968]
[1729781693516,3.96439,2522.5,2522.0,3.96508]
[1729781693721,3.96439,2522.5,2522.0,4.836568]
[1729781693883,3.96418,2522.6,2522.0,4.836468]
[1729781694080,3.96418,2522.6,2522.1,0.7732]
[1729781694680,3.96432,2522.5,2522.1,0.7732]
[1729781695116,3.9641,2522.7,2522.1,4.73801]
[1729781695326,3.9641,2522.7,2522.2,3.96478]
[1729781695616,3.96429,2522.6,2522.1,2.13492141]
[1729781695822,3.9641,2522.7,2522.2,3.96468]
[1729781696027,3.9641,2522.7,2522.2,7.92938]
[1729781696184,3.96385,2522.8,2522.3,3.96455]
[1729781696384,3.96387,2522.8,2522.3,4.72925]
[1729781696727,3.96366,2523.0,2522.3,4.72919]
[1729781696885,3.96344,2523.1,2522.5,3.96421]
[1729781697085,3.96344,2523.1,2522.6,4.81655111]
[1729781697284,3.96364,2523.0,2522.6,0.7732]
[1729781697486,3.96369,2522.9,2522.6,0.7732]
[1729781697714,3.96387,2522.8,2522.6,0.7732]
[1729781698027,3.96409,2522.7,2522.3,0.7732]
[1729781698384,3.96387,2522.8,2522.3,0.7732]
[1729781698694,3.96366,2523.0,2522.3,2.42703441]
[1729781698895,3.96353,2523.0,2522.4,3.96432]
[1729781699122,3.96344,2523.1,2522.5,3.96417]
[1729781699308,3.96361,2523.0,2522.5,3.96417]
[1729781699562,3.96344,2523.1,2522.6,3.96415]
[1729781699825,4.756099,2523.1,2522.6,3.96413]
[1729781700212,3.96344,2523.1,2522.8,0.7891]
[1729781701486,3.96323,2523.2,2522.8,0.7891]
[1729781701691,3.96341,2523.1,2522.8,0.7891]
[1729781701908,3.96357,2523.0,2522.8,0.7891]
[1729781702124,3.96341,2523.1,2522.8,0.7891]
[1729781702924,3.96315,2523.3,2522.8,8.71669]
[1729781703111,3.96315,2523.3,2522.9,3.96368]
[1729781703347,3.96266,2523.6,2522.9,4.8139584]
[1729781703517,3.96288,2523.5,2523.0,3.96344]
[1729781704016,3.96266,2523.6,2523.0,3.96344]
[1729781704216,3.96266,2523.6,2522.9,0.771]
[1729781704217,3.96266,2523.6,2523.2,3.9632]
[1729781704416,3.96253,2523.7,2523.3,0.7696]
[1729781704916,3.96267,2523.6,2523.3,0.7696]
[1729781705140,3.96276,2523.5,2523.3,0.7696]
[1729781705327,3.96267,2523.6,2523.3,0.7696]
[1729781705548,3.96362,2523.0,2522.6,0.7696]
[1729781705744,7.92727,2523.0,2522.6,0.7696]
[1729781705933,3.96337,2523.1,2522.3,0.7606]
[1729781706139,3.96408,2522.7,2522.3,0.7606]
[1729781706754,3.96414,2522.7,2522.3,0.7606]
[1729781706981,3.96432,2522.5,2522.1,0.7674]
[1729781707518,3.96455,2522.4,2522.1,0.7674]
[1729781707918,3.96434,2522.5,2522.1,0.7674]
[1729781708119,3.9645,2522.4,2522.1,0.7674]
[1729781708551,3.96434,2522.5,2522.1,0.7674]
[1729781708921,3.96466,2522.3,2522.1,0.7674]
[1729781709144,3.96486,2522.2,2521.6,3.96565]
[1729781709597,3.96512,2522.0,2521.5,8.77985606]
[1729781710077,3.96502,2522.1,2521.6,3.96573]
[1729781710424,3.9649,2522.2,2521.7,3.96543]
[1729781710619,3.9649,2522.2,2521.7,5.32716607]
[1729781710861,0.5183254,2522.5,2521.9,0.7981]
[1729781710862,3.96464,2522.3,2521.9,0.7981]
[1729781711044,3.96461,2522.4,2521.9,4.76335]
[1729781711563,3.96443,2522.5,2522.0,3.96508]
[1729781712231,3.9647,2522.3,2521.9,0.7981]
[1729781713664,3.96486,2522.2,2521.9,0.7981]
[1729781713869,3.9647,2522.3,2521.9,0.7981]
[1729781714238,3.96486,2522.2,2521.9,0.7981]
[1729781715015,3.96538,2521.9,2521.7,0.7715]
[1729781715177,3.96512,2522.0,2521.7,0.7715]
[1729781715922,3.9653,2521.9,2521.7,0.7715]
[1729781716106,3.96512,2522.0,2521.7,0.7715]
[1729781717172,3.96512,2522.0,2521.4,0.8056]
[1729781717173,3.96589,2521.5,2521.4,0.8056]
[1729781717402,3.96617,2521.4,2521.1,0.8056]
[1729781717607,3.96622,2521.3,2521.1,0.8056]
[1729781718867,3.96612,2521.4,2520.8,3.96686]
[1729781719072,3.96612,2521.4,2520.8,4.84350461]
[1729781719263,3.96612,2521.4,2520.8,8.88619067]
[1729781719515,3.96629,2521.3,2520.8,4.91933067]
[1729781719710,3.96629,2521.3,2520.8,8.88622067]
[1729781720067,3.96592,2521.5,2520.9,4.7208]
[1729781720268,3.96612,2521.4,2520.9,6.08151907]
[1729781720498,3.96592,2521.5,2521.0,3.96666]
[1729781720807,3.9657,2521.7,2521.0,3.96666]
[1729781720808,3.9657,2521.7,2521.0,3.96661]
[1729781721019,3.96573,2521.6,2521.0,3.96661]
[1729781721216,3.96585,2521.6,2521.1,3.96642]
[1729781721713,3.96551,2521.8,2521.3,4.71718]
[1729781721897,1.156786,2522.2,2521.3,0.83032]
[1729781722098,3.96501,2522.1,2521.6,3.96566]
[1729781722649,3.96501,2522.1,2521.6,3.96564]
[1729781722832,3.96501,2522.1,2521.6,3.96573]
[1729781723148,3.96474,2522.3,2521.8,3.96533]
[1729781723149,3.96477,2522.3,2521.8,3.96533]
[1729781723349,4.72471,2522.5,2521.9,1.147533]
[1729781723350,3.96451,2522.4,2521.9,1.147533]
[1729781723644,3.96473,2522.3,2521.9,0.751]
[1729781723801,3.96451,2522.4,2521.9,4.71616]
[1729781724205,7.92908,2522.4,2521.9,4.71616]
[1729781724441,7.92911,2522.4,2521.9,4.71616]
[1729781724816,3.96433,2522.5,2522.0,3.96498]
[1729781725149,3.96363,2523.0,2522.5,3.96424]
[1729781725349,0.7863,2523.3,2522.6,0.07927439]
[1729781725515,3.96351,2523.1,2522.5,3.96423]
[1729781725703,3.96351,2523.1,2522.6,3.96411]
[1729781725921,3.96323,2523.2,2522.7,3.964]
[1729781726147,7.92689,2523.1,2522.7,0.7753]
[1729781726318,3.96314,2523.3,2522.7,0.7753]
[1729781726649,3.96322,2523.2,2522.7,4.73927]
[1729781727950,7.92654,2523.2,2522.7,4.73927]
[1729781728426,3.96322,2523.2,2522.7,4.73927]
[1729781728741,3.96313,2523.3,2522.8,3.96384]
[1729781728904,3.96346,2523.1,2522.7,0.7753]
[1729781729446,7.92636,2523.3,2522.7,4.73928]
[1729781729783,3.96248,2523.7,2522.9,3.96361]
[1729781730081,3.963,2523.4,2523.2,0.8051]
[1729781731067,3.96331,2523.2,2522.9,0.7653]
[1729781731335,3.96353,2523.0,2522.6,0.7653]
[1729781732369,3.96395,2522.8,2522.6,0.7653]
[1729781732577,3.964,2522.7,2522.3,0.8323]
[1729781732962,3.964,2522.7,2522.3,4.79691]
[1729781733268,3.96385,2522.8,2522.3,6.07735461]
[1729781733686,3.96375,2522.9,2522.3,0.8323]
[1729781733687,0.8051,2522.9,2522.3,0.8323]
[1729781733897,7.92821,2522.7,2522.3,0.8323]
[1729781734046,3.96419,2522.6,2522.3,0.8323]
[1729781734491,3.96406,2522.7,2522.3,0.8323]
[1729781734861,3.96385,2522.8,2522.3,4.79692]
[1729781735379,3.96385,2522.8,2522.3,5.673013]
[1729781735786,3.96379,2522.9,2522.4,3.9644]
[1729781735995,3.96391,2522.8,2522.3,5.672973]
[1729781736283,3.96345,2523.1,2522.5,3.96423]
[1729781736466,3.96345,2523.1,2522.7,0.7515]
[1729781736839,3.96356,2523.0,2522.7,0.7515]
[1729781737684,3.96384,2522.8,2522.3,0.805]
[1729781737904,3.96369,2522.9,2522.3,4.76961]
[1729781738248,3.96397,2522.8,2522.3,0.805]
[1729781738585,3.96369,2522.9,2522.3,0.805]
[1729781738743,3.96393,2522.8,2522.3,0.805]
[1729781739186,3.96393,2522.8,2522.3,5.546606]
[1729781739392,3.9637,2522.9,2522.3,9.59051122]
[1729781739711,3.96361,2523.0,2522.4,3.96447]
[1729781740046,3.96355,2523.0,2522.5,0.8183]
[1729781740585,0.8301,2523.2,2522.5,0.7683]
[1729781740586,3.96397,2522.8,2522.5,0.7683]
[1729781740885,4.756736,2522.8,2522.5,0.7683]
[1729781741284,3.96409,2522.7,2522.1,3.0]
[1729781741442,3.96416,2522.6,2522.0,3.96498]
[1729781741645,3.96403,2522.7,2522.1,3.96488]
[1729781742253,3.96403,2522.7,2522.1,3.96487]
[1729781742848,3.96403,2522.7,2522.1,7.92974]
[1729781743077,4.756656,2522.8,2522.2,3.9647]
[1729781743485,0.8301,2523.2,2522.3,0.8184]
[1729781743767,3.96353,2523.0,2522.4,3.96438]
[1729781744882,0.7799,2522.9,2522.3,0.8184]
[1729781745247,3.96363,2523.0,2522.4,3.9644]
[1729781745433,3.96346,2523.1,2522.4,3.96436]
[1729781745586,3.96346,2523.1,2522.5,0.8118]
[1729781746282,3.96346,2523.1,2522.5,4.77609]
[1729781746497,3.96346,2523.1,2522.5,5.650135]
[1729781746700,4.74685,2523.2,2522.5,1.685845]
[1729781746701,3.9636,2523.0,2522.5,1.685845]
[1729781746923,7.92728,2523.0,2522.5,0.8118]
[1729781747234,3.9637,2522.9,2522.5,0.8118]
[1729781747438,3.96398,2522.8,2522.5,0.8118]
[1729781747639,3.9637,2522.9,2522.5,0.8118]
[1729781748395,7.9275,2522.9,2522.5,0.8118]
[1729781748698,3.9637,2522.9,2522.5,0.8118]
[1729781748924,3.96386,2522.8,2522.5,0.8118]
[1729781750837,4.360246,2522.8,2522.5,0.8118]
[1729781751399,3.96386,2522.8,2522.5,0.8118]
[1729781751596,3.96371,2522.9,2522.5,0.8118]
[1729781753459,3.96345,2523.1,2522.5,4.8553241]
[1729781753665,3.96339,2523.1,2522.5,4.8553841]
[1729781753973,3.96318,2523.3,2522.7,0.768]
[1729781754329,3.96322,2523.2,2522.7,0.768]
[1729781754534,3.96339,2523.1,2522.7,0.768]
[1729781754835,3.96322,2523.2,2522.7,0.768]
[1729781755527,0.8243,2523.5,2522.7,4.73197]
[1729781755528,3.96314,2523.3,2522.7,4.73197]
[1729781755782,3.96314,2523.3,2522.8,3.96382]
[1729781755933,3.96292,2523.4,2522.8,3.96382]
[1729781756131,3.96277,2523.5,2522.9,3.96362]
[1729781756369,7.92537,2523.6,2523.0,4.78661]
[1729781756671,4.176931,2523.7,2523.0,0.8231]
[1729781756871,3.96292,2523.4,2523.0,0.8231]
[1729781757169,3.96282,2523.5,2523.0,0.8231]
[1729781757729,4.3803631,2523.6,2523.0,0.8231]
[1729781757934,8.3431031,2523.6,2523.0,0.8231]
[1729781758164,3.96275,2523.5,2523.0,0.8231]
[1729781759146,3.96298,2523.4,2523.0,0.8231]
[1729781759338,3.96307,2523.3,2523.0,0.8231]
[1729781759534,3.96332,2523.2,2523.0,0.8231]
[1729781760042,3.96307,2523.3,2523.0,0.8231]
[1729781760341,4.77895631,2523.5,2523.0,0.8231]
[1729781760342,3.96304,2523.4,2523.0,0.8231]
[1729781760628,3.96314,2523.3,2523.0,0.8231]
[1729781762591,3.96299,2523.4,2523.0,0.8231]
[1729781762990,3.7807,2523.7,2523.1,12.84195182]
[1729781762991,3.96252,2523.7,2523.1,12.84195182]
[1729781763192,3.96252,2523.7,2523.2,0.07925468]
[1729781763431,3.96269,2523.6,2523.1,0.7934]
[1729781764020,3.96252,2523.7,2523.1,4.75665]
[1729781764234,3.96229,2523.8,2523.3,0.7841]
[1729781764433,3.96252,2523.7,2523.3,0.7841]
[1729781764910,0.8283,2524.0,2523.3,0.7841]
[1729781764911,3.96222,2523.9,2523.3,0.7841]
[1729781765111,3.96222,2523.9,2523.3,4.74714]
[1729781765529,3.96188,2524.1,2523.5,4.71887]
[1729781765733,3.96175,2524.2,2523.5,0.7562]
[1729781765938,3.9618,2524.1,2523.5,1.63239261]
[1729781766143,3.96126,2524.5,2523.8,0.7562]
[1729781766144,3.96128,2524.5,2523.8,0.7562]
[1729781766443,3.96128,2524.5,2523.9,3.9621]
[1729781766630,3.96128,2524.5,2524.0,0.7862]
[1729781767148,3.96104,2524.6,2524.0,3.96195]
[1729781767389,3.96096,2524.7,2524.2,0.8063]
[1729781767564,3.96118,2524.5,2524.2,0.8063]
[1729781767846,3.9614,2524.4,2524.2,0.8063]
[1729781768704,3.96125,2524.5,2524.2,0.8063]
[1729781769722,3.9611,2524.6,2524.2,0.8063]
[1729781770355,4.75329,2524.6,2524.2,0.5071]
[1729781770661,3.9608,2524.8,2524.2,4.46874]
[1729781770957,3.96056,2524.9,2524.3,3.9614]
[1729781771123,3.96056,2524.9,2524.2,3.96157]
[1729781771447,3.96056,2524.9,2524.3,3.96138]
[1729781771852,3.96036,2525.1,2524.4,3.96129]
[1729781771853,3.96042,2525.0,2524.4,3.96129]
[1729781772142,3.96042,2525.0,2524.3,4.04268606]
[1729781772143,3.96059,2524.9,2524.3,4.04268606]
[1729781772347,3.9607,2524.9,2524.2,3.96164]
[1729781772714,4.833128,2525.0,2524.3,3.96146]
[1729781773335,8.793658,2525.0,2524.3,3.96146]
[1729781773525,8.793658,2525.0,2524.4,0.7588]
[1729781773736,4.833128,2525.0,2524.4,4.72011]
[1729781773922,3.96024,2525.1,2524.5,0.7588]
[1729781774336,3.96024,2525.1,2524.5,8.76264606]
[1729781774511,3.96024,2525.1,2524.5,4.80148606]
[1729781774714,3.96057,2524.9,2524.5,0.7588]
[1729781775336,3.96087,2524.7,2524.5,0.7588]
[1729781775731,0.792103,2524.9,2524.2,0.7533]
[1729781775732,3.96142,2524.4,2524.2,0.7533]
[1729781776340,3.96192,2524.1,2523.8,0.7533]
[1729781777034,3.96165,2524.2,2523.8,0.7533]
[1729781777880,7.92322,2524.3,2523.8,0.7533]
[1729781778237,3.96166,2524.2,2523.8,0.7533]
[1729781779359,3.96139,2524.4,2523.8,0.7533]
[1729781779577,3.96137,2524.4,2524.0,0.794]
[1729781780180,3.96115,2524.6,2524.0,0.794]
[1729781780337,3.96118,2524.5,2524.0,0.794]
[1729781781237,3.9614,2524.4,2524.0,0.794]
[1729781781577,3.96136,2524.4,2524.0,0.794]
[1729781782080,1.214515,2524.6,2524.0,0.794]
[1729781782251,0.792103,2524.9,2524.0,0.794]
[1729781782252,3.9612,2524.5,2524.0,0.794]
[1729781782478,3.9607,2524.8,2524.1,0.07923132]
[1729781782807,3.9607,2524.8,2524.1,0.07922819]
[1729781783167,3.96089,2524.7,2524.1,3.96173]
[1729781783905,3.9607,2524.8,2524.0,0.794]
[1729781784203,3.9615,2524.3,2524.0,0.794]
[1729781784503,0.5571203,2524.7,2524.0,0.794]
[1729781784504,3.96173,2524.2,2524.0,0.794]
[1729781785064,3.96189,2524.1,2523.6,0.7645]
[1729781786262,0.8098,2524.5,2523.6,0.7645]
[1729781786799,3.96174,2524.2,2523.6,0.7645]
[1729781787472,3.96174,2524.2,2523.6,4.72702]
[1729781788605,3.96157,2524.3,2523.7,3.96242]
[1729781788809,3.96167,2524.2,2523.6,4.72701]
[1729781789376,3.96157,2524.3,2523.6,0.7645]
[1729781789568,3.96157,2524.3,2523.6,4.72708]
[1729781789569,3.96165,2524.2,2523.6,4.72708]
[1729781790389,3.96157,2524.3,2523.7,4.72314]
[1729781790686,3.96168,2524.2,2523.7,0.7608]
[1729781791074,3.96157,2524.3,2523.8,0.7608]
[1729781791307,3.9618,2524.1,2523.8,0.7608]
[1729781791675,4.753854,2524.3,2523.8,0.7608]
[1729781791994,3.9617,2524.2,2523.8,0.7608]
[1729781792199,4.753854,2524.3,2523.8,0.7608]
[1729781792775,3.96127,2524.5,2523.9,0.8122]
[1729781792982,3.96135,2524.4,2523.9,0.8122]
[1729781793507,3.96127,2524.5,2523.9,0.8122]
[1729781793713,0.5571203,2524.7,2523.9,0.8122]
[1729781793918,3.96129,2524.5,2523.9,4.77431]
[1729781794490,3.96134,2524.4,2523.9,0.8122]
[1729781794886,3.96129,2524.5,2523.9,0.8122]
[1729781795088,3.96143,2524.4,2523.9,0.8122]
[1729781795288,3.96167,2524.2,2523.9,0.8122]
[1729781795493,0.396167,2524.1,2523.9,0.8122]
[1729781797190,3.96167,2524.2,2523.9,0.8122]
[1729781797698,3.96156,2524.3,2523.9,0.8122]
[1729781798284,3.96129,2524.5,2523.9,0.8122]
[1729781798495,3.96096,2524.7,2524.0,4.04107845]
[1729781798724,3.96096,2524.7,2524.1,4.73352]
[1729781798922,5.1323333,2524.7,2524.1,4.73352]
[1729781799132,3.96035,2525.1,2524.4,0.8206]
[1729781799287,3.96046,2525.0,2524.4,0.8206]
[1729781800096,3.96046,2525.0,2524.4,4.78193]
[1729781800323,3.96046,2525.0,2524.4,0.8206]
[1729781800633,3.96057,2524.9,2524.4,0.8206]
[1729781800798,3.96046,2525.0,2524.4,4.78191]
[1729781801893,3.96046,2525.0,2524.5,0.7788]
[1729781802093,3.96025,2525.1,2524.5,0.7788]
[1729781802293,3.96025,2525.1,2524.5,4.73997]
[1729781802723,3.9605,2525.0,2524.5,0.7788]
[1729781803291,3.9605,2525.0,2524.5,1.252799]
[1729781804435,3.96063,2524.9,2524.5,0.7788]
[1729781804800,3.9605,2525.0,2524.3,0.7665]
[1729781804801,3.96093,2524.7,2524.3,0.7665]
[1729781805035,3.96104,2524.6,2524.3,0.7665]
[1729781805446,3.96093,2524.7,2524.3,0.7665]
[1729781806060,7.92188,2524.7,2524.3,0.7665]
[1729781806240,3.96112,2524.6,2524.3,0.7665]
[1729781809164,3.96133,2524.4,2523.9,0.7979]
[1729781809668,3.96141,2524.4,2523.9,0.7979]
[1729781809983,3.96166,2524.2,2523.9,0.7979]
[1729781810282,7.92288,2524.4,2523.9,0.7979]
[1729781810578,3.96152,2524.3,2523.9,0.7979]
[1729781810880,0.8203,2524.5,2523.9,0.7979]
[1729781811045,3.96144,2524.4,2523.9,0.7979]
[1729781811389,3.96107,2524.6,2524.0,0.07923755]
[1729781811563,8.87479113,2524.7,2524.1,0.7931]
[1729781811751,3.9611,2524.6,2524.1,0.7931]
[1729781812077,3.96125,2524.5,2524.1,0.7931]
[1729781812276,3.96104,2524.6,2524.1,0.7931]
[1729781812476,3.96088,2524.7,2524.1,4.75488]
[1729781812842,3.96088,2524.7,2524.1,4.75489]
[1729781813037,3.9608,2524.8,2524.2,3.96156]
[1729781813286,4.04268606,2525.3,2524.3,0.8137]
[1729781813458,3.96053,2525.0,2524.5,0.8137]
[1729781813972,3.96026,2525.1,2524.5,0.8137]
[1729781814279,3.96026,2525.1,2524.5,1.291188]
[1729781814488,7.92061,2525.1,2524.5,5.252338]
[1729781814649,3.96008,2525.2,2524.5,1.291188]
[1729781814844,3.96046,2525.0,2524.5,1.291188]
[1729781815478,3.96055,2524.9,2524.5,1.291188]
[1729781815681,3.96046,2525.0,2524.5,0.8137]
[1729781816382,3.96034,2525.1,2524.6,0.777]
[1729781818289,3.96048,2525.0,2524.6,0.777]
[1729781818511,3.96072,2524.8,2524.6,0.777]
[1729781818657,3.96072,2524.8,2524.1,0.475489]
[1729781818658,3.96072,2524.8,2524.1,3.475489]
[1729781818863,3.96096,2524.7,2524.2,0.8106]
[1729781819370,0.396072,2524.8,2524.2,0.8106]
[1729781819700,0.8193,2525.0,2524.2,0.7606]
[1729781819701,3.961,2524.7,2524.2,0.7606]
[1729781819870,0.8193,2525.0,2524.2,0.7606]
[1729781819871,3.96118,2524.5,2524.2,0.7606]
[1729781820228,7.92259,2524.5,2524.2,0.7606]
[1729781820354,3.96127,2524.5,2524.2,0.7606]
[1729781820778,3.96134,2524.4,2524.2,0.7606]
[1729781820977,4.753601,2524.4,2524.2,0.7606]
[1729781821555,3.96149,2524.3,2523.7,3.96231]
[1729781821775,3.96149,2524.3,2523.7,7.92465]
[1729781821982,3.96149,2524.3,2523.7,3.96231]
[1729781822384,3.96149,2524.3,2523.7,7.92466]
[1729781822591,3.96149,2524.3,2523.7,3.96231]
[1729781822894,3.96149,2524.3,2523.8,0.7752]
[1729781823096,4.753611,2524.4,2523.8,0.7752]
[1729781823254,4.753611,2524.4,2523.8,4.73739]
[1729781823554,3.96135,2524.4,2523.8,4.73739]
[1729781824625,3.96119,2524.5,2523.9,0.89403303]
[1729781825316,3.96119,2524.5,2523.9,4.85608303]
[1729781825471,3.96118,2524.5,2523.9,0.89403303]
[1729781825981,3.96118,2524.5,2523.9,4.77691]
[1729781826719,3.96135,2524.4,2523.9,0.8148]
[1729781826885,3.96159,2524.3,2523.9,0.8148]
[1729781828106,3.9613,2524.5,2523.9,0.8148]
[1729781828280,3.96135,2524.4,2523.9,0.8148]
[1729781828485,3.96135,2524.4,2523.9,0.89403307]
[1729781828810,3.96135,2524.4,2523.9,0.8148]